Cogmind - Beta 12 X1 @@@ ROGUE MODE // 2022.08.26 @ 15:36:12 Player: jfk Result: Destroyed by Y-45 Defender with Beam Rifle Performance ------------- Evolutions (1) 500 Regions Visited (2) 400 Robots Destroyed (15) 75 Value Destroyed (453) 453 Prototype IDs (0) 0 Alien Tech Used (0) 0 Bonus (0) 0 TOTAL SCORE: 1428 Bonus ------- None Cogmind --------- Core Integrity 0/400 Matter 290/300 Energy 80/265 System Corruption 0% Temperature Cool (15) Movement Core (250) Ox4 Location -9/Materials Parts ------- > --- POWER (1) -------- Improved Ion Engine > --- PROPULSION (2) --- (None) > --- UTILITY (4) ------ Small Storage Unit > --- WEAPON (2) ------- Mining Claw > --- INVENTORY (8) ---- Medium Matter Pod (100) Structural Scanner Visual Processing Unit Sensor Array Signal Interpreter Light Assault Rifle Peak State ------------ > --- POWER ------------ Improved Ion Engine > --- PROPULSION ------- Light Treads Light Treads > --- UTILITY ---------- Small Storage Unit > --- WEAPON ----------- Medium Laser Light Assault Rifle > --- INVENTORY -------- Light Ion Engine Improved Ion Engine Medium Matter Pod Structural Scanner Visual Processing Unit Sensor Array Signal Interpreter Mining Claw [Rating: 8] Favorites ----------- Power Ion Engine Engine Ion Engine Propulsion Light Treads Treads Light Treads Leg Improved Aluminum Leg Utility Small Storage Unit Storage Small Storage Unit Protection Light Armor Plating Weapon Medium Laser Energy Gun Medium Laser Ballistic Gun Assault Rifle Slashing Weapon Mining Claw Build | -11 -10 -9 ------- Run | Scr Mat Mat Slots Evolved 2 | . . 2 Power . | . . . Propulsion . | . . . Utility 2 | . . 2 Weapon . | . . . Parts Attached 17 | 6 3 8 Power 5 | 1 1 3 Engine 5 | 1 1 3 Core . | . . . Reactor . | . . . Propulsion 3 | 2 . 1 Treads 2 | 2 . . Leg 1 | . . 1 Wheel . | . . . Hover . | . . . Flight . | . . . Utility 2 | 1 1 . Device . | . . . Storage 1 | 1 . . Processor . | . . . Hackware . | . . . Protection 1 | . 1 . Artifact . | . . . Weapon 7 | 2 1 4 Energy Gun 3 | 1 . 2 Energy Cannon . | . . . Ballistic Gun 2 | 1 1 . Ballistic Cannon . | . . . Launcher . | . . . Special Weapon . | . . . Impact Weapon . | . . . Slashing Weapon 2 | . . 2 Piercing Weapon . | . . . Special Melee Weapon . | . . . Unidentified Prototypes . | . . . Parts Lost 6 | . 2 4 Power 1 | . . 1 Propulsion 3 | . . 3 Utility 1 | . 1 . Weapon 1 | . 1 . Highest Loss Streak 2 | . 2 2 To Critical Strikes . | . . . Average Slot Usage (%) 89 | . 94 54 Engine 13 | . 14 11 Treads 25 | . 28 11 Storage 13 | . 14 11 Protection 8 | . 9 . Energy Gun 13 | . 14 8 Ballistic Gun 13 | . 14 6 Naked Turns . | . . . Heaviest Build 17 | 12 17 15 Greatest Support 40 | 40 40 40 Greatest Overweight (x) 4 | . . 4 Average Overweight (x) . | . . . Largest Inventory Capacity 8 | 8 8 8 Average Capacity 7 | 6 8 8 Most Carried 8 | 4 8 8 Average Carried 6 | 1 6 7 Final Capacity 8 | 8 8 8 Final Carried 7 | 4 7 6 Class Distribution -------------------- 100% | Mutant Dominant Class ---------------- Mutant | -10/Materials Mutant | -9/Materials Resources | -11 -10 -9 ----------- Run | Scr Mat Mat Matter Collected 538 | 241 228 69 Remotely . | . . . Salvage Created 586 | . 439 147 Parts 35 | . 26 9 Haulers Intercepted 1 | . 1 . Recyclers Shooed 1 | . 1 . Parts Field Recycled . | . . . Retrieved Matter . | . . . Parts Self-Destructed . | . . . Prevented . | . . . Kills | -11 -10 -9 ------- Run | Scr Mat Mat Combat Hostiles Destroyed 11 | . 7 4 Melee 2 | . . 2 Guns 9 | . 7 2 Classes Destroyed 5 | . 4 1 Hauler 1 | . 1 . Recycler 1 | . 1 . Watcher 2 | . 2 . Grunt 10 | . 7 3 Duelist 1 | . . 1 Best Kill Streak 6 | . 6 2 Combat Bots Only 4 | . 4 2 Max Kills in Single Turn 1 | . 1 1 Gunslinging . | . . . Exploded . | . . . Melee 1 | . . 1 Uniques/NPCs Destroyed . | . . . Combat | -11 -10 -9 -------- Run | Scr Mat Mat Damage Taken 1352 | . 589 763 Core 474 | . 68 406 Absorbed by Shields . | . . . Core Remaining (%) 86 | 100 72 . Volleys Fired 40 | . 32 8 Largest 2 | . 2 2 Hottest 70 | . 70 70 Shots Fired 79 | . 64 15 Gun 79 | . 64 15 Cannon . | . . . Launcher . | . . . Special . | . . . Kinetic 39 | . 32 7 Thermal 40 | . 32 8 Explosive . | . . . Electromagnetic . | . . . Robot Hit Streak 15 | . 15 12 Robot Miss Streak 3 | . 3 1 Penetration Max . | . . . Secondary Targets 2 | . 2 . Max Gunslinging Chain 1 | . 1 . Shots Hit Robots 71 | . 46 25 Core Hits 31 | . 23 8 Critical Kills 1 | . . 1 Critical Parts Destroyed . | . . . Critical Strikes 3 | . 2 1 Burn 2 | . 2 . Destroy 1 | . . 1 Melee Attacks 13 | . . 13 Impact . | . . . Slashing 13 | . . 13 Piercing . | . . . Sneak Attacks . | . . . Combat Hostiles . | . . . Follow-up Attacks . | . . . Damage Inflicted 941 | . 593 348 Guns 733 | . 590 143 Cannons . | . . . Explosions . | . . . Melee 205 | . . 205 Ramming 3 | . 3 . Kinetic 333 | . 277 56 Thermal 400 | . 313 87 Explosive . | . . . Electromagnetic . | . . . Impact . | . . . Slashing 205 | . . 205 Piercing . | . . . Highest Corruption . | . . . Average Corruption . | . . . Corruption Purged . | . . . Corruption Blocked . | . . . Overload Shots . | . . . Overflow Damage . | . . . Projectiles . | . . . Explosions . | . . . Melee . | . . . Knockbacks . | . . . Impact . | . . . Kinetic . | . . . Secondary . | . . . Self-Inflicted Damage . | . . . Shots . | . . . Rammed 1 | . 1 . Targets Rammed 1 | . 1 . Kicked . | . . . Crushed . | . . . Highest Temperature 178 | . 178 114 Average Temperature 45 | . 44 51 Received Heat Transfer 594 | . 339 255 Siege Activations . | . . . Robots Corrupted . | . . . Combat Hostiles . | . . . Parts Fried . | . . . Impact Corruptions . | . . . Robots Melted . | . . . Combat Hostiles . | . . . Parts Melted 1 | . 1 . Heat Transferred 1320 | . 1073 247 Parts Sabotaged . | . . . Parts Stolen . | . . . Parts Stripped . | . . . Power Chain Reactions . | . . . Missiles Intercepted . | . . . Alert | -11 -10 -9 ------- Run | Scr Mat Mat Peak Influence 134 | . 134 85 Initial . | . . . Average 27 | . 29 26 Maximum Alert Level . | . . . Low Security (%) 100 | 100 100 100 Level 1 . | . . . Level 2 . | . . . Level 3 . | . . . Level 4 . | . . . Level 5 . | . . . High Security . | . . . Max Security . | . . . Squads Dispatched 4 | . 4 . Investigation 3 | . 3 . Extermination . | . . . Reinforcement 1 | . 1 . Assault . | . . . Garrison . | . . . Intercept . | . . . Searches Triggered . | . . . Construction Impeded . | . . . Haulers Reinforced . | . . . Active Scanning Responses . | . . . Cargo Convoy Interrupts . | . . . Stealth | -11 -10 -9 --------- Run | Scr Mat Mat Distress Signals . | . . . Communications Jammed . | . . . Distress Signals . | . . . Times Spotted 24 | . 17 7 Peak Tracking Total 5 | . 3 5 Tactical Retreats . | . . . Traps | -11 -10 -9 ------- Run | Scr Mat Mat Traps Triggered 3 | . 3 . Indirectly . | . . . Trap Hack Attempts . | . . . Triggered . | . . . Disarmed . | . . . Reprogrammed . | . . . Reused . | . . . Traps Extracted . | . . . Installed . | . . . Triggered . | . . . Machines | -11 -10 -9 ---------- Run | Scr Mat Mat Machines Disabled . | . . . Max in Single Turn . | . . . Machines Sabotaged . | . . . Garrisons Compromised . | . . . Overloaded Fab Kills . | . . . Hacking | -11 -10 -9 --------- Run | Scr Mat Mat Machines Accessed 3 | . 3 . Terminals 3 | . 3 . Fabricators . | . . . Repair Stations . | . . . Recycling Units . | . . . Scanalyzers . | . . . Garrison Access . | . . . Total Hacks 12 | . 12 . Successful 5 | . 5 . Failed 7 | . 7 . Catastrophic . | . . . Database Lockouts . | . . . Manual 8 | . 8 . Terminals 12 | . 12 . Fabricators . | . . . Repair Stations . | . . . Recycling Units . | . . . Scanalyzers . | . . . Garrison Access . | . . . Terminal Hacks 5 | . 5 . Emergency Access Points 1 | . 1 . Unreport Threat 1 | . 1 . Hauler Manifests 1 | . 1 . Zone Layout 2 | . 2 . Fabricator Hacks . | . . . Repair Station Hacks . | . . . Recycling Unit Hacks . | . . . Scanalyzer . | . . . Garrison Access Hacks . | . . . Unauthorized Hacks . | . . . Terminals . | . . . Fabricators . | . . . Repair Stations . | . . . Recycling Units . | . . . Scanalyzers . | . . . Garrison Access . | . . . Data Cores Recovered . | . . . Used . | . . . Hacking Detections 3 | . 3 . Full Trace Events . | . . . Feedback Events . | . . . Feedback Blocked . | . . . Robot Schematics Acquired . | . . . Robots Built . | . . . Authchips . | . . . Time . | . . . Total Robot Build Rating . | . . . Part Schematics Acquired . | . . . Parts Built . | . . . Authchips . | . . . Time . | . . . Total Part Build Rating . | . . . Parts Repaired . | . . . Time . | . . . Parts Recycled . | . . . Recycled Matter . | . . . Retrieved Matter . | . . . Retrieved Components . | . . . Parts Scanalyzed . | . . . Part Schematics Acquired . | . . . Parts Damaged . | . . . Bothacking | -11 -10 -9 ------------ Run | Scr Mat Mat Used RIF Installer . | . . . Robots Hacked . | . . . Non-combat . | . . . Combat . | . . . Robot Hacks Applied . | . . . Relay Couplers Released . | . . . Fabnet Peak Effective % . | . . . Robots Rewired . | . . . Allies Hacked . | . . . Hacks Repelled . | . . . Allies | -11 -10 -9 -------- Run | Scr Mat Mat Total Allies . | . . . Largest Group . | . . . Highest-Rated Group . | . . . Highest-Rated Ally . | . . . Total Orders . | . . . Ally Attacks . | . . . Total Damage . | . . . Kills . | . . . Allies Corrupted . | . . . Allies Melted . | . . . Intel | -11 -10 -9 ------- Run | Scr Mat Mat Robot Analysis Total . | . . . Derelict Logs Recovered . | . . . Drone Launches . | . . . Drone Recoveries . | . . . Exploration | -11 -10 -9 ------------- Run | Scr Mat Mat Turns Passed 1240 | 74 1021 145 Spaces Moved 551 | 41 480 30 Core 5 | 3 . 2 Treads 546 | 38 480 28 Legs . | . . . Wheels . | . . . Hover . | . . . Flight . | . . . Fastest Speed 50 | 50 160 160 Average Speed 159 | 151 160 166 Slowest Speed 250 | 160 160 250 Overloaded Moves . | . . . Propulsion Burnouts . | . . . Robots Hopped . | . . . Cave-ins Triggered . | . . . Exploration Rate (%) 29 | 5 79 4 Regions Visited 2 Branch Regions . Pre-discovered Areas . | . . . Known Exits Taken . | . . . Unknown Exits Taken 2 | 1 1 . Scrap Searched . | . . . Spaces Dug . | . . . Terrain Destroyed . | . . . Melee . | . . . Projectile . | . . . AOE . | . . . Terrain Rammed . | . . . Walls Destroyed . | . . . Machines Disabled . | . . . Actions | -11 -10 -9 --------- Run | Scr Mat Mat Total 808 | 50 670 88 Wait 169 | . 146 23 Move 549 | 40 479 30 Hop . | . . . Pick Up 12 | 4 6 2 Fast Attach 9 | 6 1 2 Attach 3 | . 1 2 Detach . | . . . Swap 5 | . 1 4 Drop 7 | . 3 4 Fire 40 | . 32 8 Melee 13 | . . 13 Ram . | . . . Kick . | . . . Crush 1 | . 1 . Escape Stasis . | . . . Rewire . | . . . Trap . | . . . Miscellaneous . | . . . Route ------- -11/Scrapyard -10/Materials (discovered 4 exits: [*Mat x3] / [*Min]) -9/Materials History --------- Turn | Location | Event 45 | -11/Scrapyard | Discovered new exit (range 16) 75 | -11/Scrapyard | Entered Materials 285 | -10/Materials | Discovered new exit (range 4) 303 | -10/Materials | Build established: Mutant 687 | -10/Materials | Discovered new exit (range 15) 764 | -10/Materials | Discovered new exit (range 13) 821 | -10/Materials | Discovered new exit (range 7) 1096 | -10/Materials | Entered another Materials area 1096 | -9/Materials | Evolved 2 slots: Utility x2 1219 | -9/Materials | Core integrity fell below 50% 1226 | -9/Materials | Core integrity fell below 20% 1241 | -9/Materials | Destroyed by Y-45 Defender with Beam Rifle Last Messages --------------- 01170_ Dropped Sml. Laser. 01174_ Acquired 31 matter. 01175_ Critical hit (Burn: +37). 01177_ K-01 Serf collects debris. 01196_ Lgt. Treads destroyed. 01201_ Mining Claw severed. 01204_ Acquired Mining Claw. 01210_ Sml. Laser severed. 01215_ L-31 Rogue Imp. Aluminum Leg ripped off. 01219_ Critical hit (Burn: +37). 01220_ Imp. Ion Engine severed. 01220_ Acquired Imp. Aluminum Leg. 01222_ L-31 Rogue destroyed. 01223_ Acquired 28 matter. 01225_ G-34 Mercenary destroyed. 01229_ Acquired 10 matter. 01233_ Scanalyzer disabled. 01235_ Imp. Aluminum Leg destroyed. 01239_ M-13 Machinist repairs G-34 Mercenary. 01241_ Imp. Ion Engine destroyed. Map ----- +----------------------------------------------------+ | ????????????????????????????????? | | ????????????????????????????????? | | ????????????????????????????????? | | ????????????????????????????????? | | ????????????????????????????????? | | ????????????????????????????????? | | ????????????????????????????????? | | ????????????????????????????????? | | ????????????????????????????????? | | ????????????????????????????????? | | ????????????????????????????????? | | ????????????????????????????????? | | ????????????????????????????????? | | ????????????????????????????????? | | ????????????????????????????????? | | ????????????????????????????????? | | ???????????????????#####????????? | | ????????????######## #????????? | | ????????????# # #????????? | | ????????????# # #????????? | | ????????????# + #????????? | | ????????????#* ** # #????????? | | ????????????# * * # #????????? | | ????????????# ** # ########?? | | ????????????######## #/*g* #?? | | ???????????????????# #[@g= #?? | | ???????????????????# *#YmS #?? | | ??????????????###### %k[ "" #?? | | ??????? ! #[%"" #?? | | ??????? #[ #?? | | ??????? ########?? | | ???????? ########## #????????? | | ???????????????????# #????????? | | ??????????????????? #????????? | | ?????????????????? #????????? | | ?????????????????/ #????????? | | ?????????????????/ #????????? | | ????????????????]] ?????????? | | ???????????????#]] ?????????? | | ???????????????##### ?????????? | | ???????????????????# ?????????? | | ???????????????????# ?????????? | | ???????????????????# ?????????? | | ???????????????????? ?????????? | | ????????????????????????????????? | | ????????????????????????????????? | | ????????????????????????????????? | | ????????????????????????????????? | | ????????????????????????????????? | | ????????????????????????????????? | +----------------------------------------------------+ Best States ------------- Heat Dissipation 28 Energy Generation 12 Energy Capacity 265 Matter Stores 300 Matter Capacity 300 Sight Range 16 Terrain Scan Density 10 Armor Coverage 150 Evasion (%) 40 Recoil Reduction 2 Item Schematics ----------------- None Robot Schematics ------------------ None Fabricated ------------ Nothing Alien Tech Used ----------------- None Achievements -------------- None Challenges ------------ None Game ------ Seed HellfireSmartbombAutohacker Manual? 0 Play Time 00:10:55 Cumulative 382.5 hours Start 2022.08.24 @ 20:29:37 End 2022.08.26 @ 15:36:12 Sessions 3 Manual Loads 0 Difficulty Rogue Special Mode None Game No. 126 Rogue 14 Adventurer 0 Explorer 112 Win Type - Total 26 Types 15/3/1/1/1/2/1/2/0 Lore% 70 Gallery% 84 Achievement% 82 Wizard Run 0 Options --------- ASCII 1 Keyboard 1 Movement Vi Keybinds 0 Fullscreen 1 Font 18/SmallcapsGlow Map View 76x50 Tactical HUD 1 Map Filters NONE Filters NONE Steam 1 RUN: 814e0c92-dfcf-46b2-81bc-189b523f94a0